Workbook

Sheet 1 НЕДЕЛЯ
A1: ПРИМЕРНОЕ ДВЕНАДЦАТИДНЕВНОЕ МЕНЮ НА 2022-2023 УЧЕБНЫЙ ГОД ДЛЯ ОБУЧАЮЩИХСЯ В ОБЩЕОБРАЗОВАТЕЛЬНЫХ ОРГАНИЗАЦИЯХ АКТАНЫШСКОГО МУНИЦИПАЛЬНОГО РАЙОНА РЕСПУБЛИКИ ТАТАРСТАН ОСЕННЕ-ЗИМНИЙ ПЕРИОД (1-ЫЙ ЗАВТРАК)
A2: № рецептуры | B2: Наименование блюд | C2: Выход | D2: Пищевые вещества,г | G2: Калорийность, ккал | H2: Витамины, мг | L2: Минеральные вещества,мг
D3: белки | E3: жиры | F3: углеводы | H3: В1 | I3: С | J3: А | K3: Е | L3: Са | M3: Р | N3: Mg | O3: Fe
B4: 1-ая неделя
B5: 1 день
B6: 1-ый завтрак
A7: 258 | B7: Каша вязкая пшеничная молочная со слив.маслом | C7: 200/100 | D7: 5.6 | E7: 7.6 | F7: 0.5 | G7: 154.9 | H7: 0.11 | I7: 0.6 | J7: 18.6 | K7: 0 | L7: 0 | M7: 2.2 | N7: 14.8 | O7: 2.16
A8: 628 | B8: Чай с сахаром | C8: 200/15 | D8: 0.53 | E8: 0 | F8: 9.47 | G8: 40 | H8: 0 | I8: 0.27 | J8: 0 | K8: 0 | L8: 13.6 | M8: 22.13 | N8: 11.73 | O8: 0.1
B9: Хлеб пшеничный, обогащенный йодказеином | C9: 60 | D9: 4.8 | E9: 1.3 | F9: 32.8 | G9: 163.8 | H9: 0.07 | I9: 0 | J9: 0 | K9: 0.66 | L9: 12 | M9: 39 | N9: 8.4 | O9: 0.66
B10: Итого: | D10: =D7+D8+D9 -> 10.93 | E10: =E7+E8+E9 -> 8.9 | F10: 42.77 | G10: 358.7 | H10: 0.18 | I10: 0.87 | J10: 18.6 | K10: 0.66 | L10: 25.6 | M10: 63.33 | N10: 34.93 | O10: =O7+O8+O9 -> 2.92
B11: 2 день
B12: 1-ый завтрак
A13: 168 | B13: Каша вязкая манная молочная со слив.маслом | C13: 200/10 | D13: 4.8 | E13: 8.2 | F13: 30.4 | G13: 220 | H13: 0.03 | I13: 0 | J13: 0.08 | K13: 0 | L13: 94.8 | M13: 64.7 | N13: 23.3 | O13: 1.3
A14: 628 | B14: Чай с сахаром | C14: 200/15 | D14: 0.53 | E14: 0 | F14: 9.47 | G14: 40 | H14: 0 | I14: 0.27 | J14: 0 | K14: 0 | L14: 13.6 | M14: 22.13 | N14: 11.73 | O14: 0.1
B15: Хлеб пшеничный, обогащенный йодказеином | C15: 60 | D15: 4.8 | E15: 1.3 | F15: 32.8 | G15: 163.8 | H15: 0.07 | I15: 0 | J15: 0 | K15: 0.66 | L15: 12 | M15: 39 | N15: 8.4 | O15: 0.66
B16: Итого: | D16: =D13+D14+D15 -> 10.13 | E16: =E13+E14+E15 -> 9.5 | F16: 72.67 | G16: 423.8 | H16: 0.1 | I16: 0.27 | J16: 0.08 | K16: 0.66 | L16: 120.4 | M16: 125.83 | N16: 43.43 | O16: 2.06
B17: 3 день
B18: 1-ый завтрак
A19: 257 | B19: Каша молочная рисовая со слив.маслом | C19: 200/10 | D19: 5.8 | E19: 8.8 | F19: 29.3 | G19: 229.7 | H19: 0.05 | I19: 1.07 | J19: 0.06 | K19: 1.4 | L19: 30.4 | M19: 118.2 | N19: 18.8 | O19: 0.6
A20: 628 | B20: Чай с сахаром | C20: 200/15 | D20: 0.53 | E20: 0 | F20: 9.47 | G20: 40 | H20: 0 | I20: 0.27 | J20: 0 | K20: 0 | L20: 13.6 | M20: 22.13 | N20: 11.73 | O20: 0.1
B21: Хлеб пшеничный, обогащенный йодказеином | C21: 60 | D21: 4.8 | E21: 1.3 | F21: 32.8 | G21: 163.8 | H21: 0.07 | I21: 0 | J21: 0 | K21: 0.66 | L21: 12 | M21: 39 | N21: 8.4 | O21: 0.66
B22: Итого: | D22: =D19+D20+D21 -> 11.13 | E22: =E19+E20+E21 -> 10.1 | F22: 71.57 | G22: 433.5 | H22: 0.12 | I22: 1.34 | J22: 0.06 | K22: 2.06 | L22: 56 | M22: 179.33 | N22: 38.93 | O22: 1.36
B23: 4 день
B24: 1-ый завтрак
A25: 258 | B25: Каша вязкая пшеничная молочная со слив.маслом | C25: 200/10 | D25: 5.6 | E25: 76 | F25: 0.5 | G25: 154.9 | H25: 0.11 | I25: 0.6 | J25: 18.6 | K25: 0 | L25: 0 | M25: 2.2 | N25: 14.8 | O25: 2.16
B26: Чай с сахаром | C26: 200/15 | D26: 0.53 | E26: 0 | F26: 9.47 | G26: 40 | H26: 0 | I26: 0.27 | J26: 0 | K26: 0 | L26: 13.6 | M26: 22.13 | N26: 11.73 | O26: 0.1
B27: Хлеб пшеничный, обогащенный йодказеином | C27: 60 | D27: 4.8 | E27: 1.3 | F27: 32.8 | G27: 163.8 | H27: 0.07 | I27: 0 | J27: 0 | K27: 0.66 | L27: 12 | M27: 39 | N27: 8.4 | O27: 0.66
B28: Итого: | D28: =D25+D26+D27 -> 10.93 | E28: =E25+E26+E27 -> 77.3 | F28: 42.77 | G28: 358.7 | H28: 0.18 | I28: 0.87 | J28: 18.6 | K28: 0.66 | L28: 25.6 | M28: 63.33 | N28: 34.93 | O28: =O25+O26+O27 -> 2.92
B29: 5 день
B30: 1-ый завтрак
A31: 679 | B31: Каша пшенная рассыпчатая со слив.маслом | C31: 200/10 | D31: 8.8 | E31: 7.6 | F31: 50.5 | G31: 306 | H31: 0.22 | I31: 0.1 | J31: 0 | K31: 2.9 | L31: 2.1 | M31: 0.1 | N31: 0.3 | O31: 1.25
A32: 628 | B32: Чай с сахаром | C32: 200/15 | D32: 0.53 | E32: 0 | F32: 9.47 | G32: 40 | H32: 0 | I32: 0.27 | J32: 0 | K32: 0 | L32: 13.6 | M32: 22.13 | N32: 11.73 | O32: 0.1
B33: Хлеб пшеничный, обогащенный йодказеином | C33: 60 | D33: 4.8 | E33: 1.3 | F33: 32.8 | G33: 163.8 | H33: 0.07 | I33: 0 | J33: 0 | K33: 0.66 | L33: 12 | M33: 39 | N33: 8.4 | O33: 0.66
B34: Итого: | D34: =D31+D32+D33 -> 14.13 | E34: =E31+E32+E33 -> 8.9 | F34: 92.77 | G34: 509.8 | H34: 0.29 | I34: 0.37 | J34: 0 | K34: 3.56 | L34: 27.7 | M34: 61.23 | N34: 20.43 | O34: =O31+O32+O33 -> 2.01

Sheet 2 НЕДЕЛЯ
A1: ПРИМЕРНОЕ ДВЕНАДЦАТИДНЕВНОЕ МЕНЮ НА 2022-2023 УЧЕБНЫЙ ГОД ДЛЯ ОБУЧАЮЩИХСЯ В ОБЩЕОБРАЗОВАТЕЛЬНЫХ ОРГАНИЗАЦИЯХ АКТАНЫШСКОГО МУНИЦИПАЛЬНОГО РАЙОНА РЕСПУБЛИКИ ТАТАРСТАН ОСЕННЕ-ЗИМНИЙ ПЕРИОД (1-ЫЙ ЗАВТРАК)
A2: № рецептуры | B2: Наименование блюд | C2: Выход | D2: Пищевые вещества,г | G2: Калорийность, ккал | H2: Витамины, мг | L2: Минеральные вещества,мг
D3: белки | E3: жиры | F3: углеводы | H3: В1 | I3: С | J3: А | K3: Е | L3: Са | M3: Р | N3: Mg | O3: Fe
B4: 2-ая неделя
B5: 1 день
B6: 1-ый завтрак
A7: 168 | B7: Каша вязкая манная со слив.маслом | C7: 200/10 | D7: 4.8 | E7: 8.2 | F7: 30.4 | G7: 220 | H7: 0.03 | I7: 0 | J7: 0.08 | K7: 0 | L7: 94 | M7: 64.7 | N7: 23.3 | O7: 1.3
A8: 628 | B8: Чай с сахаром | C8: 200/15 | D8: 0.53 | E8: 0 | F8: 9.47 | G8: 40 | H8: 0 | I8: 0.27 | J8: 0 | K8: 0 | L8: 13.6 | M8: 22.13 | N8: 11.73 | O8: 0.1
B9: Хлеб пшеничный, обогащенный йодказеином | C9: 60 | D9: 4.8 | E9: 1.3 | F9: 32.8 | G9: 163.8 | H9: 0.07 | I9: 0 | J9: 0 | K9: 0.66 | L9: 12 | M9: 39 | N9: 8.4 | O9: 0.66
B10: Итого: | D10: =D7+D8+D9 -> 10.13 | E10: =E7+E8+E9 -> 9.5 | F10: 72.67 | G10: 423.8 | H10: 0.1 | I10: 0.27 | J10: 0.08 | K10: 0.66 | L10: 119.6 | M10: 125.83 | N10: 43.43 | O10: 2.06
B11: 2 день
B12: 1-ый завтрак
A13: 679 | B13: Каша пшенная рассыпчатая со слив.маслом | C13: 200/10 | D13: 8.8 | E13: 7.6 | F13: 50.5 | G13: 306 | H13: 0.22 | I13: 0.1 | J13: 0 | K13: 2.9 | L13: 2.1 | M13: 0.1 | N13: 0.3 | O13: 1.27
A14: 627 | B14: Чай с сахаром | C14: 200/15 | D14: 0.53 | E14: 0 | F14: 9.47 | G14: 40 | H14: 0 | I14: 0.27 | J14: 0 | K14: 0 | L14: 13.6 | M14: 22.13 | N14: 11.73 | O14: 0.1
B15: Хлеб пшеничный, обогащенный йодказеином | C15: 60 | D15: 4.8 | E15: 1.3 | F15: 32.8 | G15: 163.8 | H15: 0.07 | I15: 0 | J15: 0 | K15: 0.66 | L15: 12 | M15: 39 | N15: 8.4 | O15: 0.66
B16: Итого: | D16: =D13+D14+D15 -> 14.13 | E16: =E13+E14+E15 -> 8.9 | F16: 92.77 | G16: 509.8 | H16: 0.29 | I16: 0.37 | J16: 0 | K16: 3.56 | L16: 27.7 | M16: 61.23 | N16: 20.43 | O16: 2.03
B17: 3 день
B18: 1-ый завтрак
A19: 465 | B19: Рис отварной с маслом | C19: 7/200 | D19: 7.3 | E19: 10.8 | F19: 73.3 | G19: 302.5 | H19: 0.04 | I19: 0.02 | J19: 1.4 | K19: 0.9 | L19: 99.7 | M19: 118.2 | N19: 18.8 | O19: 0.6
A20: 628 | B20: Чай с сахаром | C20: 200/15 | D20: 0.53 | E20: 0 | F20: 9.47 | G20: 40 | H20: 0 | I20: 0.27 | J20: 0 | K20: 0 | L20: 13.6 | M20: 22.13 | N20: 11.73 | O20: 0.1
B21: Хлеб пшеничный, обогащенный йодказеином | C21: 60 | D21: 4.8 | E21: 1.3 | F21: 32.8 | G21: 163.8 | H21: 0.07 | I21: 0 | J21: 0 | K21: 0.66 | L21: 12 | M21: 39 | N21: 8.4 | O21: 0.66
B22: Итого: | D22: =D19+D20+D21 -> 12.63 | E22: =E19+E20+E21 -> 12.1 | F22: 115.57 | G22: 506.3 | H22: 0.11 | I22: 0.29 | J22: 1.4 | K22: 1.56 | L22: 125.3 | M22: 179.33 | N22: 38.93 | O22: 1.36
B23: 4 день
B24: 1-ый завтрак
A25: 258 | B25: Каша ячневая вязкая со слив.маслом | C25: 200/10 | D25: 6.4 | E25: 5.7 | F25: 41.1 | G25: 249.4 | H25: 0.2 | I25: 0 | J25: 0.01 | K25: 0.01 | L25: 174 | M25: 112.3 | N25: 14.1 | O25: 2.05
A26: 628 | B26: Чай с сахаром | C26: 200/15 | D26: 0.53 | E26: 0 | F26: 9.47 | G26: 40 | H26: 0 | I26: 0.27 | J26: 0 | K26: 0 | L26: 13.6 | M26: 22.13 | N26: 11.73 | O26: 0.1
B27: Салат из белокочан.капусты | C27: 60 | D27: 1.4 | E27: 5.2 | F27: 6.8 | G27: 66 | H27: 0 | I27: 0.03 | J27: 4.2 | K27: 0.69 | L27: 96.6 | M27: 43.9 | N27: 6.2 | O27: 0.35
B28: Хлеб пшеничный, обогащенный йодказеином | C28: 60 | D28: 4.8 | E28: 1.3 | F28: 32.8 | G28: 163.8 | H28: 0.07 | I28: 0 | J28: 0 | K28: 0.66 | L28: 12 | M28: 39 | N28: 8.4 | O28: 0.66
B29: Итого: | D29: =D25+D26+D27+D28 -> 13.13 | E29: =E25+E26+E27+E28 -> 12.2 | F29: 90.17 | G29: 519.2 | H29: 0.27 | I29: 0.3 | J29: 4.21 | K29: 1.36 | L29: 296.2 | M29: 217.33 | N29: 40.43 | O29: 3.16
B30: 5 день
B31: 1-ый завтрак
A32: 258 | B32: Каша овсяная вязкая со слив.маслом | C32: 200/10 | D32: 6.82 | E32: 14.1 | F32: 25.24 | G32: 254.8 | H32: 0.13 | I32: 1.3 | J32: 0.05 | K32: 0.26 | L32: 156.6 | M32: 194 | N32: 54.6 | O32: 2.61
A33: 628 | B33: Чай с сахаром | C33: 200/15 | D33: 0.53 | E33: 0 | F33: 9.47 | G33: 40 | H33: 0 | I33: 0.27 | J33: 0 | K33: 0 | L33: 13.6 | M33: 22.13 | N33: 11.73 | O33: 0.1
B34: Хлеб пшеничный, обогащенный йодказеином | C34: 60 | D34: 4.8 | E34: 1.3 | F34: 32.8 | G34: 163.8 | H34: 0.07 | I34: 0 | J34: 0 | K34: 0.66 | L34: 12 | M34: 39 | N34: 8.4 | O34: 0.66
B35: Итого: | D35: =D32+D33+D34 -> 12.15 | E35: =E32+E33+E34 -> 15.4 | F35: 67.51 | G35: 458.6 | H35: 0.2 | I35: 1.57 | J35: 0.05 | K35: 0.92 | L35: 182.2 | M35: 255.13 | N35: 74.73 | O35: 3.37
